[Event "Titled Tuesday Blitz July 25 Early 2023"]
[White "Vitiugov, Nikita"]
[Black "Mamedov, Edgar"]
[WhiteFideId "4152956"]
[BlackFideId "13739980"]
[WhiteElo "2837"]
[BlackElo "2620"]
[Result "1-0"]
[Round "7"]
[TimeControl "180+2"]
[Date "2023.07.25"]
[WhiteClock "0:00:14"]
[BlackClock "0:00:00"]
[Board "30"]

1. e4 {[%clk 0:03:00]}  c5 {[%clk 0:02:59]} 2. Nf3 {[%clk 0:03:00]}  Nc6 {[%clk 0:02:58]} 3. Bb5 {[%clk 0:02:58]}  e5 {[%clk 0:02:58]} 4. O-O {[%clk 0:02:54]}  Bd6 {[%clk 0:02:57]} 5. c3 {[%clk 0:02:54]}  a6 {[%clk 0:02:50]} 6. Ba4 {[%clk 0:02:53]}  b5 {[%clk 0:02:47]} 7. Bb3 {[%clk 0:02:52]}  c4 {[%clk 0:02:46]} 8. Bc2 {[%clk 0:02:52]}  Nf6 {[%clk 0:02:45]} 9. d3 {[%clk 0:02:52]}  cxd3 {[%clk 0:02:43]} 10. Qxd3 {[%clk 0:02:52]}  Bc7 {[%clk 0:02:42]} 11. Bg5 {[%clk 0:02:52]}  h6 {[%clk 0:02:41]} 12. Bxf6 {[%clk 0:02:52]}  Qxf6 {[%clk 0:02:41]} 13. Nbd2 {[%clk 0:02:50]}  O-O {[%clk 0:02:37]} 14. Rfd1 {[%clk 0:02:50]}  Rb8 {[%clk 0:02:22]} 15. Nf1 {[%clk 0:02:50]}  d6 {[%clk 0:02:14]} 16. Ne3 {[%clk 0:02:49]}  Be6 {[%clk 0:02:12]} 17. Bb3 {[%clk 0:02:49]}  Na5 {[%clk 0:02:08]} 18. Bd5 {[%clk 0:02:48]}  Bb6 {[%clk 0:02:03]} 19. Nf5 {[%clk 0:02:23]}  Bxf5 {[%clk 0:01:55]} 20. exf5 {[%clk 0:02:23]}  Nc4 {[%clk 0:01:45]} 21. Rab1 {[%clk 0:02:16]}  Ba7 {[%clk 0:01:38]} 22. Qe4 {[%clk 0:02:10]}  Kh8 {[%clk 0:01:26]} 23. h4 {[%clk 0:02:04]}  g6 {[%clk 0:01:24]} 24. fxg6 {[%clk 0:02:02]}  fxg6 {[%clk 0:01:22]} 25. b3 {[%clk 0:01:49]}  Nb6 {[%clk 0:01:21]} 26. Rd3 {[%clk 0:01:42]}  Nd7 {[%clk 0:01:16]} 27. b4 {[%clk 0:01:41]}  Qf5 {[%clk 0:00:41]} 28. Qxf5 {[%clk 0:01:01]}  gxf5 {[%clk 0:00:39]} 29. Bc6 {[%clk 0:01:01]}  Nf6 {[%clk 0:00:32]} 30. Rxd6 {[%clk 0:00:57]}  Ng4 {[%clk 0:00:32]} 31. Kf1 {[%clk 0:00:46]}  Bxf2 {[%clk 0:00:29]} 32. Nxe5 {[%clk 0:00:43]}  Nxe5 {[%clk 0:00:26]} 33. Kxf2 {[%clk 0:00:43]}  Rbc8 {[%clk 0:00:23]} 34. Bf3 {[%clk 0:00:35]}  Rxc3 {[%clk 0:00:22]} 35. Rxh6+ {[%clk 0:00:35]}  Kg7 {[%clk 0:00:22]} 36. Rxa6 {[%clk 0:00:36]}  f4 {[%clk 0:00:20]} 37. Rd1 {[%clk 0:00:33]}  Rc2+ {[%clk 0:00:17]} 38. Kf1 {[%clk 0:00:28]}  Nxf3 {[%clk 0:00:14]} 39. gxf3 {[%clk 0:00:29]}  Re8 {[%clk 0:00:13]} 40. Rd7+ {[%clk 0:00:28]}  Kh8 {[%clk 0:00:13]} 41. Rad6 {[%clk 0:00:25]}  Rc1+ {[%clk 0:00:12]} 42. Rd1 {[%clk 0:00:24]}  Rxd1+ {[%clk 0:00:10]} 43. Rxd1 {[%clk 0:00:24]}  Ra8 {[%clk 0:00:06]} 44. Rd2 {[%clk 0:00:22]}  Ra3 {[%clk 0:00:06]} 45. Kg2 {[%clk 0:00:22]}  Ra4 {[%clk 0:00:03]} 46. Rd4 {[%clk 0:00:21]}  Rxa2+ {[%clk 0:00:03]} 47. Kh3 {[%clk 0:00:22]}  Rc2 {[%clk 0:00:03]} 48. Kg4 {[%clk 0:00:20]}  Kg7 {[%clk 0:00:02]} 49. Kxf4 {[%clk 0:00:19]}  Kf6 {[%clk 0:00:02]} 50. Rd6+ {[%clk 0:00:19]}  Ke7 {[%clk 0:00:02]} 51. Rd4 {[%clk 0:00:18]}  Kf6 {[%clk 0:00:02]} 52. h5 {[%clk 0:00:18]}  Rh2 {[%clk 0:00:02]} 53. h6 {[%clk 0:00:16]}  Ke6 {[%clk 0:00:01]} 54. Kg5 {[%clk 0:00:15]}  Rg2+ {[%clk 0:00:01]} 55. Rg4 {[%clk 0:00:15]}  Rh2 {[%clk 0:00:01]} 56. Rh4 {[%clk 0:00:15]}  Rg2+ {[%clk 0:00:02]} 57. Kf4 {[%clk 0:00:14]}  Rg8 {[%clk 0:00:01]} 58. h7 {[%clk 0:00:15]}  Rf8+ {[%clk 0:00:01]} 59. Ke4 {[%clk 0:00:15]}  Rh8 {[%clk 0:00:00]} 60. f4 {[%clk 0:00:14]} 1-0


[Site "https://www.chess.com"]

[Event "Titled Tuesday Blitz July 25 Early 2023"]
[White "Marek, Matyas"]
[Black "Aravindh, Chithambaram VR."]
[WhiteFideId "335398"]
[BlackFideId "5072786"]
[WhiteElo "2702"]
[BlackElo "2918"]
[Result "1-0"]
[Round "7"]
[TimeControl "180+2"]
[Date "2023.07.25"]
[WhiteClock "0:00:25"]
[BlackClock "0:00:13"]
[Board "36"]

1. Nf3 {[%clk 0:03:00]}  g6 {[%clk 0:03:00]} 2. g3 {[%clk 0:03:01]}  Bg7 {[%clk 0:03:01]} 3. Bg2 {[%clk 0:03:02]}  e5 {[%clk 0:03:00]} 4. O-O {[%clk 0:03:03]}  Ne7 {[%clk 0:03:01]} 5. d3 {[%clk 0:03:03]}  O-O {[%clk 0:03:01]} 6. e4 {[%clk 0:03:03]}  Nbc6 {[%clk 0:03:02]} 7. c3 {[%clk 0:03:02]}  d5 {[%clk 0:03:02]} 8. Nbd2 {[%clk 0:03:02]}  h6 {[%clk 0:03:01]} 9. Re1 {[%clk 0:03:02]}  Be6 {[%clk 0:03:01]} 10. Qc2 {[%clk 0:02:58]}  f5 {[%clk 0:02:59]} 11. b4 {[%clk 0:02:59]}  dxe4 {[%clk 0:02:55]} 12. dxe4 {[%clk 0:02:59]}  f4 {[%clk 0:02:56]} 13. Bb2 {[%clk 0:02:55]}  g5 {[%clk 0:02:55]} 14. Nb3 {[%clk 0:02:34]}  Ng6 {[%clk 0:02:46]} 15. Nc5 {[%clk 0:02:33]}  Bc8 {[%clk 0:02:46]} 16. Qb3+ {[%clk 0:02:28]}  Kh7 {[%clk 0:02:42]} 17. Ne6 {[%clk 0:02:28]}  Qe7 {[%clk 0:02:27]} 18. Nxf8+ {[%clk 0:02:27]}  Nxf8 {[%clk 0:02:28]} 19. b5 {[%clk 0:02:22]}  Nd8 {[%clk 0:02:25]} 20. Ba3 {[%clk 0:02:21]}  Qe8 {[%clk 0:02:24]} 21. Rad1 {[%clk 0:02:10]}  Ng6 {[%clk 0:02:22]} 22. Qc4 {[%clk 0:02:05]}  Ne6 {[%clk 0:02:15]} 23. Bh3 {[%clk 0:02:00]}  a6 {[%clk 0:02:12]} 24. b6 {[%clk 0:01:49]}  cxb6 {[%clk 0:02:08]} 25. Bf5 {[%clk 0:01:49]}  b5 {[%clk 0:02:07]} 26. Qd5 {[%clk 0:01:43]}  Nf8 {[%clk 0:02:00]} 27. Bxf8 {[%clk 0:01:31]}  Qxf8 {[%clk 0:01:59]} 28. Bxg6+ {[%clk 0:01:21]}  Kxg6 {[%clk 0:01:58]} 29. Nxe5+ {[%clk 0:01:21]}  Kh7 {[%clk 0:01:57]} 30. Nd7 {[%clk 0:01:22]}  Bxd7 {[%clk 0:01:41]} 31. Qxd7 {[%clk 0:01:23]}  Qc5 {[%clk 0:01:29]} 32. Qf5+ {[%clk 0:01:19]}  Qxf5 {[%clk 0:01:28]} 33. exf5 {[%clk 0:01:19]}  Bxc3 {[%clk 0:01:19]} 34. Re7+ {[%clk 0:01:17]}  Kg8 {[%clk 0:01:19]} 35. Rxb7 {[%clk 0:01:09]}  Re8 {[%clk 0:01:18]} 36. Kg2 {[%clk 0:01:05]}  b4 {[%clk 0:01:13]} 37. gxf4 {[%clk 0:01:04]}  gxf4 {[%clk 0:01:12]} 38. Kf3 {[%clk 0:01:03]}  a5 {[%clk 0:01:12]} 39. Kxf4 {[%clk 0:01:01]}  a4 {[%clk 0:01:12]} 40. Kg4 {[%clk 0:00:52]}  Rf8 {[%clk 0:00:56]} 41. Rd6 {[%clk 0:00:47]}  Ra8 {[%clk 0:00:52]} 42. Rg6+ {[%clk 0:00:43]}  Kf8 {[%clk 0:00:52]} 43. Rc6 {[%clk 0:00:35]}  Kg8 {[%clk 0:00:43]} 44. Kh5 {[%clk 0:00:35]}  Rf8 {[%clk 0:00:24]} 45. Kg6 {[%clk 0:00:34]}  Kh8 {[%clk 0:00:21]} 46. f6 {[%clk 0:00:32]}  Rg8+ {[%clk 0:00:20]} 47. Rg7 {[%clk 0:00:24]}  Rf8 {[%clk 0:00:14]} 48. Rh7+ {[%clk 0:00:23]}  Kg8 {[%clk 0:00:14]} 49. f7+ {[%clk 0:00:24]}  Rxf7 {[%clk 0:00:15]} 50. Rxf7 {[%clk 0:00:25]}  Bh8 {[%clk 0:00:13]} 51. Rc8# {[%clk 0:00:25]} 1-0


[Site "https://www.chess.com"]

[Event "Titled Tuesday Blitz July 25 Early 2023"]
[White "Harsha Bharathakoti"]
[Black "Djokic, Mihailo"]
[WhiteFideId "5078776"]
[BlackFideId "976440"]
[WhiteElo "2864"]
[BlackElo "2700"]
[Result "1-0"]
[Round "7"]
[TimeControl "180+2"]
[Date "2023.07.25"]
[WhiteClock "0:00:45"]
[BlackClock "0:01:36"]
[Board "37"]

1. c4 {[%clk 0:03:00]}  e5 {[%clk 0:02:59]} 2. Nc3 {[%clk 0:02:59]}  Nc6 {[%clk 0:03:00]} 3. Nf3 {[%clk 0:02:59]}  Nf6 {[%clk 0:03:00]} 4. e3 {[%clk 0:03:00]}  Bb4 {[%clk 0:02:58]} 5. Qc2 {[%clk 0:03:00]}  a5 {[%clk 0:02:56]} 6. Nd5 {[%clk 0:02:57]}  Bc5 {[%clk 0:02:56]} 7. a3 {[%clk 0:02:50]}  O-O {[%clk 0:02:48]} 8. Be2 {[%clk 0:02:46]}  d6 {[%clk 0:02:44]} 9. Nc3 {[%clk 0:02:47]}  Ba7 {[%clk 0:02:38]} 10. O-O {[%clk 0:02:43]}  Re8 {[%clk 0:02:38]} 11. d3 {[%clk 0:02:43]}  Bd7 {[%clk 0:02:28]} 12. b3 {[%clk 0:02:41]}  Ne7 {[%clk 0:02:25]} 13. Bb2 {[%clk 0:02:39]}  Ng6 {[%clk 0:02:25]} 14. Rfe1 {[%clk 0:02:36]}  Qc8 {[%clk 0:02:24]} 15. Rac1 {[%clk 0:02:24]}  Bc6 {[%clk 0:02:15]} 16. h3 {[%clk 0:02:15]}  Bd7 {[%clk 0:02:05]} 17. Kh2 {[%clk 0:02:13]}  c6 {[%clk 0:02:02]} 18. Ne4 {[%clk 0:01:56]}  Bb8 {[%clk 0:01:57]} 19. Nxf6+ {[%clk 0:01:56]}  gxf6 {[%clk 0:01:58]} 20. e4 {[%clk 0:01:40]}  Nf4 {[%clk 0:01:54]} 21. Bf1 {[%clk 0:01:40]}  f5 {[%clk 0:01:54]} 22. Qd2 {[%clk 0:01:36]}  Qd8 {[%clk 0:01:48]} 23. g3 {[%clk 0:01:35]}  Ng6 {[%clk 0:01:47]} 24. Qh6 {[%clk 0:00:48]}  Qf6 {[%clk 0:01:46]} 25. d4 {[%clk 0:00:47]}  fxe4 {[%clk 0:01:40]} 26. Ng5 {[%clk 0:00:47]}  Qxf2+ {[%clk 0:01:41]} 27. Bg2 {[%clk 0:00:47]}  Nf8 {[%clk 0:01:40]} 28. Rf1 {[%clk 0:00:45]}  Qxb2 {[%clk 0:01:40]} 29. Rxf7 {[%clk 0:00:45]}  Qxc1 {[%clk 0:01:36]} 30. Qg7# {[%clk 0:00:45]} 1-0


[Site "https://www.chess.com"]

[Event "Titled Tuesday Blitz July 25 Early 2023"]
[White "Moroni, Luca Jr"]
[Black "brm72"]
[WhiteFideId "865834"]
[WhiteElo "2853"]
[BlackElo "2669"]
[Result "0-1"]
[Round "7"]
[TimeControl "180+2"]
[Date "2023.07.25"]
[WhiteClock "0:00:25"]
[BlackClock "0:00:15"]
[Board "39"]

1. g4 {[%clk 0:03:00]}  d5 {[%clk 0:02:54]} 2. Bg2 {[%clk 0:03:00]}  Bxg4 {[%clk 0:02:54]} 3. c4 {[%clk 0:03:01]}  dxc4 {[%clk 0:02:51]} 4. Bxb7 {[%clk 0:02:58]}  Nd7 {[%clk 0:02:51]} 5. Qa4 {[%clk 0:02:56]}  Nf6 {[%clk 0:02:31]} 6. Qxc4 {[%clk 0:02:49]}  Rb8 {[%clk 0:02:27]} 7. Bg2 {[%clk 0:02:46]}  e6 {[%clk 0:02:24]} 8. Nf3 {[%clk 0:02:46]}  Bd6 {[%clk 0:02:22]} 9. Nc3 {[%clk 0:02:45]}  O-O {[%clk 0:02:15]} 10. d4 {[%clk 0:02:44]}  c5 {[%clk 0:02:11]} 11. dxc5 {[%clk 0:02:36]}  Nxc5 {[%clk 0:02:12]} 12. Bg5 {[%clk 0:02:32]}  Rb4 {[%clk 0:02:08]} 13. Qxb4 {[%clk 0:01:59]}  Nd3+ {[%clk 0:02:07]} 14. exd3 {[%clk 0:02:00]}  Bxb4 {[%clk 0:02:08]} 15. O-O {[%clk 0:01:59]}  h6 {[%clk 0:02:06]} 16. Bh4 {[%clk 0:01:57]}  Qxd3 {[%clk 0:02:04]} 17. Ne5 {[%clk 0:01:57]}  Qf5 {[%clk 0:01:59]} 18. Nxg4 {[%clk 0:01:57]}  Nxg4 {[%clk 0:01:59]} 19. Bg3 {[%clk 0:01:50]}  Bxc3 {[%clk 0:01:39]} 20. bxc3 {[%clk 0:01:50]}  Rc8 {[%clk 0:01:31]} 21. Rfc1 {[%clk 0:01:50]}  Ne5 {[%clk 0:01:29]} 22. Rab1 {[%clk 0:01:47]}  Nf3+ {[%clk 0:01:26]} 23. Kh1 {[%clk 0:01:47]}  g5 {[%clk 0:01:24]} 24. c4 {[%clk 0:01:44]}  h5 {[%clk 0:01:20]} 25. c5 {[%clk 0:01:28]}  h4 {[%clk 0:01:06]} 26. Bd6 {[%clk 0:01:23]}  h3 {[%clk 0:01:05]} 27. Bf1 {[%clk 0:01:21]}  e5 {[%clk 0:01:02]} 28. Rb4 {[%clk 0:01:03]}  Nd2 {[%clk 0:00:35]} 29. Kg1 {[%clk 0:00:50]}  Qf3 {[%clk 0:00:30]} 30. Rb3 {[%clk 0:00:34]}  Nxb3 {[%clk 0:00:29]} 31. axb3 {[%clk 0:00:34]}  Qxb3 {[%clk 0:00:27]} 32. Bxe5 {[%clk 0:00:31]}  Qd5 {[%clk 0:00:18]} 33. Bd6 {[%clk 0:00:31]}  Qxd6 {[%clk 0:00:15]} 34. cxd6 {[%clk 0:00:30]}  Rxc1 {[%clk 0:00:15]} 35. d7 {[%clk 0:00:25]}  Rd1 {[%clk 0:00:15]} 0-1


[Site "https://www.chess.com"]

[Event "Titled Tuesday Blitz July 25 Early 2023"]
[White "Harsh Suresh"]
[Black "Manelyuk, Daniil"]
[WhiteFideId "45018464"]
[BlackFideId "44173920"]
[WhiteElo "2839"]
[BlackElo "2664"]
[Result "1/2-1/2"]
[Round "7"]
[TimeControl "180+2"]
[Date "2023.07.25"]
[WhiteClock "0:00:02"]
[BlackClock "0:00:27"]
[Board "42"]

1. e4 {[%clk 0:03:00]}  c6 {[%clk 0:02:58]} 2. Nf3 {[%clk 0:03:00]}  d5 {[%clk 0:02:58]} 3. Nc3 {[%clk 0:03:00]}  dxe4 {[%clk 0:02:59]} 4. Nxe4 {[%clk 0:03:01]}  Nf6 {[%clk 0:02:59]} 5. Qe2 {[%clk 0:03:01]}  Nxe4 {[%clk 0:02:59]} 6. Qxe4 {[%clk 0:03:02]}  Qd5 {[%clk 0:03:00]} 7. Qh4 {[%clk 0:03:03]}  Qe6+ {[%clk 0:03:00]} 8. Be2 {[%clk 0:03:02]}  Qg4 {[%clk 0:03:01]} 9. Qg3 {[%clk 0:03:01]}  Qxg3 {[%clk 0:03:01]} 10. hxg3 {[%clk 0:03:02]}  Nd7 {[%clk 0:03:01]} 11. d4 {[%clk 0:03:02]}  Nf6 {[%clk 0:03:01]} 12. Bd3 {[%clk 0:03:01]}  h6 {[%clk 0:03:00]} 13. a4 {[%clk 0:03:00]}  Be6 {[%clk 0:02:58]} 14. a5 {[%clk 0:03:00]}  O-O-O {[%clk 0:02:58]} 15. c3 {[%clk 0:03:00]}  Nd5 {[%clk 0:02:56]} 16. Ne5 {[%clk 0:02:52]}  f6 {[%clk 0:02:53]} 17. Ng6 {[%clk 0:02:52]}  Rg8 {[%clk 0:02:53]} 18. Bd2 {[%clk 0:02:43]}  Bf7 {[%clk 0:02:52]} 19. O-O {[%clk 0:02:33]}  e6 {[%clk 0:02:52]} 20. Nxf8 {[%clk 0:02:16]}  Rgxf8 {[%clk 0:02:53]} 21. Rfe1 {[%clk 0:02:16]}  h5 {[%clk 0:02:50]} 22. f3 {[%clk 0:02:09]}  g5 {[%clk 0:02:49]} 23. Kf2 {[%clk 0:02:09]}  a6 {[%clk 0:02:47]} 24. c4 {[%clk 0:01:54]}  Nc7 {[%clk 0:02:46]} 25. Bc3 {[%clk 0:01:53]}  Kb8 {[%clk 0:02:38]} 26. Bc2 {[%clk 0:01:51]}  Rd7 {[%clk 0:02:33]} 27. Re2 {[%clk 0:01:45]}  Rfd8 {[%clk 0:02:29]} 28. d5 {[%clk 0:01:34]}  e5 {[%clk 0:02:29]} 29. dxc6 {[%clk 0:01:32]}  bxc6 {[%clk 0:02:29]} 30. b3 {[%clk 0:01:32]}  Ne6 {[%clk 0:02:24]} 31. Bf5 {[%clk 0:01:30]}  Rd1 {[%clk 0:02:21]} 32. Rxd1 {[%clk 0:01:24]}  Rxd1 {[%clk 0:02:22]} 33. Be4 {[%clk 0:01:21]}  Kc7 {[%clk 0:02:17]} 34. Bc2 {[%clk 0:01:18]}  Rd8 {[%clk 0:02:14]} 35. Rd2 {[%clk 0:01:14]}  Nd4 {[%clk 0:02:06]} 36. Bd1 {[%clk 0:01:14]}  c5 {[%clk 0:02:01]} 37. Ke1 {[%clk 0:01:09]}  Bg6 {[%clk 0:01:59]} 38. Rb2 {[%clk 0:01:03]}  Rb8 {[%clk 0:01:58]} 39. b4 {[%clk 0:01:03]}  Bd3 {[%clk 0:01:51]} 40. bxc5 {[%clk 0:00:56]}  Rxb2 {[%clk 0:01:50]} 41. Bxb2 {[%clk 0:00:57]}  Bxc4 {[%clk 0:01:49]} 42. Ba4 {[%clk 0:00:31]}  h4 {[%clk 0:01:36]} 43. gxh4 {[%clk 0:00:29]}  gxh4 {[%clk 0:01:37]} 44. Kf2 {[%clk 0:00:29]}  Bd5 {[%clk 0:01:25]} 45. f4 {[%clk 0:00:22]}  Bc6 {[%clk 0:01:20]} 46. fxe5 {[%clk 0:00:21]}  fxe5 {[%clk 0:01:19]} 47. Bd1 {[%clk 0:00:18]}  Be4 {[%clk 0:01:15]} 48. Ba4 {[%clk 0:00:16]}  Bc6 {[%clk 0:01:13]} 49. Bd1 {[%clk 0:00:15]}  Bd5 {[%clk 0:01:13]} 50. Ba4 {[%clk 0:00:15]}  Kb7 {[%clk 0:01:04]} 51. Bc3 {[%clk 0:00:11]}  Kc7 {[%clk 0:01:04]} 52. Bb2 {[%clk 0:00:11]}  Be6 {[%clk 0:01:01]} 53. Bc3 {[%clk 0:00:11]}  Bd7 {[%clk 0:01:01]} 54. Bd1 {[%clk 0:00:05]}  Kc6 {[%clk 0:00:58]} 55. Ba4+ {[%clk 0:00:05]}  Kc7 {[%clk 0:00:58]} 56. Bd1 {[%clk 0:00:05]}  Bb5 {[%clk 0:00:56]} 57. Ke3 {[%clk 0:00:06]}  Bc6 {[%clk 0:00:52]} 58. Kf2 {[%clk 0:00:04]}  Kd7 {[%clk 0:00:49]} 59. Bb2 {[%clk 0:00:03]}  Ke6 {[%clk 0:00:49]} 60. Bxd4 {[%clk 0:00:03]}  exd4 {[%clk 0:00:49]} 61. Be2 {[%clk 0:00:04]}  Bb7 {[%clk 0:00:44]} 62. Bc4+ {[%clk 0:00:04]}  Ke5 {[%clk 0:00:43]} 63. Be2 {[%clk 0:00:04]}  Bc8 {[%clk 0:00:40]} 64. Bf3 {[%clk 0:00:03]}  h3 {[%clk 0:00:37]} 65. gxh3 {[%clk 0:00:03]}  Bxh3 {[%clk 0:00:38]} 66. Ke2 {[%clk 0:00:04]}  Bf5 {[%clk 0:00:36]} 67. Bb7 {[%clk 0:00:04]}  Be6 {[%clk 0:00:33]} 68. Kd3 {[%clk 0:00:03]}  Bf5+ {[%clk 0:00:32]} 69. Kc4 {[%clk 0:00:04]}  Be6+ {[%clk 0:00:32]} 70. Kb4 {[%clk 0:00:04]}  d3 {[%clk 0:00:26]} 71. Kc3 {[%clk 0:00:04]}  Bf5 {[%clk 0:00:27]} 72. Bxa6 {[%clk 0:00:04]}  Kd5 {[%clk 0:00:27]} 73. Bxd3 {[%clk 0:00:02]}  Bxd3 {[%clk 0:00:27]} 74. c6 {[%clk 0:00:02]}  Kxc6 {[%clk 0:00:27]} 75. Kxd3 {[%clk 0:00:02]}  Kb5 {[%clk 0:00:27]} 76. a6 {[%clk 0:00:02]}  Kxa6 {[%clk 0:00:27]} 1/2-1/2


[Site "https://www.chess.com"]

[Event "Titled Tuesday Blitz July 25 Early 2023"]
[White "Samunenkov, Ihor"]
[Black "Pinero Rodriguez, Carlos Jose"]
[WhiteFideId "14187086"]
[BlackFideId "3901726"]
[WhiteElo "2796"]
[BlackElo "2615"]
[Result "1-0"]
[Round "7"]
[TimeControl "180+2"]
[Date "2023.07.25"]
[WhiteClock "0:00:46"]
[BlackClock "0:00:09"]
[Board "45"]

1. e4 {[%clk 0:03:00]}  c5 {[%clk 0:03:00]} 2. Nf3 {[%clk 0:03:00]}  e6 {[%clk 0:03:00]} 3. d4 {[%clk 0:03:00]}  cxd4 {[%clk 0:03:01]} 4. Nxd4 {[%clk 0:03:01]}  a6 {[%clk 0:03:01]} 5. c4 {[%clk 0:03:01]}  Qc7 {[%clk 0:03:02]} 6. Nc3 {[%clk 0:03:00]}  Nf6 {[%clk 0:03:02]} 7. a3 {[%clk 0:03:00]}  b6 {[%clk 0:03:03]} 8. f4 {[%clk 0:02:54]}  d6 {[%clk 0:03:02]} 9. Bd3 {[%clk 0:02:52]}  Bb7 {[%clk 0:03:02]} 10. O-O {[%clk 0:02:52]}  Be7 {[%clk 0:03:00]} 11. f5 {[%clk 0:02:47]}  e5 {[%clk 0:03:00]} 12. Nf3 {[%clk 0:02:23]}  h6 {[%clk 0:03:00]} 13. Kh1 {[%clk 0:02:22]}  Nbd7 {[%clk 0:03:00]} 14. b4 {[%clk 0:02:17]}  Rc8 {[%clk 0:03:00]} 15. Bb2 {[%clk 0:02:16]}  b5 {[%clk 0:02:57]} 16. cxb5 {[%clk 0:02:10]}  axb5 {[%clk 0:02:55]} 17. Nxb5 {[%clk 0:02:10]}  Qb6 {[%clk 0:02:53]} 18. Nc3 {[%clk 0:01:44]}  O-O {[%clk 0:02:53]} 19. Rc1 {[%clk 0:01:44]}  Rxc3 {[%clk 0:02:52]} 20. Bxc3 {[%clk 0:01:42]}  Nxe4 {[%clk 0:02:53]} 21. Be1 {[%clk 0:01:37]}  Ndf6 {[%clk 0:02:41]} 22. Qe2 {[%clk 0:01:29]}  Ra8 {[%clk 0:02:20]} 23. Bh4 {[%clk 0:01:14]}  Rxa3 {[%clk 0:02:15]} 24. Bxe4 {[%clk 0:01:07]}  Bxe4 {[%clk 0:01:54]} 25. Bxf6 {[%clk 0:00:51]}  Re3 {[%clk 0:00:24]} 26. Rc8+ {[%clk 0:00:47]}  Kh7 {[%clk 0:00:09]} 27. Ng5+ {[%clk 0:00:46]} 1-0


[Site "https://www.chess.com"]

[Event "Titled Tuesday Blitz July 25 Early 2023"]
[White "Kantor, Gergely"]
[Black "ArtemDyachuk"]
[WhiteFideId "751499"]
[WhiteElo "2789"]
[BlackElo "2610"]
[Result "1-0"]
[Round "7"]
[TimeControl "180+2"]
[Date "2023.07.25"]
[WhiteClock "0:00:49"]
[BlackClock "0:00:23"]
[Board "48"]

1. e4 {[%clk 0:03:00]}  c6 {[%clk 0:02:57]} 2. d4 {[%clk 0:02:59]}  d5 {[%clk 0:02:57]} 3. exd5 {[%clk 0:02:59]}  cxd5 {[%clk 0:02:57]} 4. Bd3 {[%clk 0:03:00]}  Nc6 {[%clk 0:02:56]} 5. c3 {[%clk 0:02:59]}  Qc7 {[%clk 0:02:57]} 6. Ne2 {[%clk 0:02:54]}  e6 {[%clk 0:02:57]} 7. Bf4 {[%clk 0:02:54]}  Bd6 {[%clk 0:02:57]} 8. Bxd6 {[%clk 0:02:53]}  Qxd6 {[%clk 0:02:58]} 9. a4 {[%clk 0:02:54]}  Nge7 {[%clk 0:02:52]} 10. Na3 {[%clk 0:02:52]}  a6 {[%clk 0:02:52]} 11. O-O {[%clk 0:02:52]}  Bd7 {[%clk 0:02:51]} 12. b4 {[%clk 0:02:52]}  O-O {[%clk 0:02:48]} 13. Qd2 {[%clk 0:02:35]}  Ng6 {[%clk 0:02:46]} 14. Bxg6 {[%clk 0:02:33]}  hxg6 {[%clk 0:02:46]} 15. Qf4 {[%clk 0:02:33]}  Qxf4 {[%clk 0:02:40]} 16. Nxf4 {[%clk 0:02:33]}  Rac8 {[%clk 0:02:40]} 17. a5 {[%clk 0:02:26]}  Ne7 {[%clk 0:02:37]} 18. Rfc1 {[%clk 0:02:24]}  Rc7 {[%clk 0:02:27]} 19. Nd3 {[%clk 0:02:24]}  Nf5 {[%clk 0:02:13]} 20. Nc5 {[%clk 0:02:24]}  Bc8 {[%clk 0:02:14]} 21. b5 {[%clk 0:02:13]}  e5 {[%clk 0:01:55]} 22. b6 {[%clk 0:02:04]}  Rc6 {[%clk 0:01:54]} 23. Nc2 {[%clk 0:02:05]}  exd4 {[%clk 0:01:44]} 24. cxd4 {[%clk 0:02:04]}  Re8 {[%clk 0:01:43]} 25. Nb4 {[%clk 0:01:58]}  Rd6 {[%clk 0:01:41]} 26. Re1 {[%clk 0:01:56]}  Kf8 {[%clk 0:01:30]} 27. Rxe8+ {[%clk 0:01:39]}  Kxe8 {[%clk 0:01:31]} 28. Rd1 {[%clk 0:01:35]}  Ne7 {[%clk 0:01:27]} 29. Re1 {[%clk 0:01:33]}  Kd8 {[%clk 0:01:26]} 30. f3 {[%clk 0:01:28]}  Rf6 {[%clk 0:01:11]} 31. Rxe7 {[%clk 0:01:23]}  Kxe7 {[%clk 0:01:10]} 32. Nxd5+ {[%clk 0:01:23]}  Kd6 {[%clk 0:01:09]} 33. Nxf6 {[%clk 0:01:22]}  gxf6 {[%clk 0:01:10]} 34. Kf2 {[%clk 0:01:21]}  Kd5 {[%clk 0:01:08]} 35. Ke3 {[%clk 0:01:22]}  Kc4 {[%clk 0:00:58]} 36. Ne4 {[%clk 0:01:22]}  Kd5 {[%clk 0:00:43]} 37. Nxf6+ {[%clk 0:01:20]}  Kc6 {[%clk 0:00:44]} 38. d5+ {[%clk 0:01:16]}  Kb5 {[%clk 0:00:45]} 39. Kd4 {[%clk 0:01:14]}  Kxa5 {[%clk 0:00:44]} 40. Kc5 {[%clk 0:01:14]}  Ka4 {[%clk 0:00:45]} 41. Ne4 {[%clk 0:01:09]}  Kb3 {[%clk 0:00:39]} 42. Nd6 {[%clk 0:00:59]}  a5 {[%clk 0:00:39]} 43. Nxc8 {[%clk 0:00:59]}  a4 {[%clk 0:00:40]} 44. d6 {[%clk 0:00:54]}  a3 {[%clk 0:00:39]} 45. d7 {[%clk 0:00:55]}  a2 {[%clk 0:00:40]} 46. d8=Q {[%clk 0:00:55]}  a1=Q {[%clk 0:00:41]} 47. Qd5+ {[%clk 0:00:54]}  Kc2 {[%clk 0:00:38]} 48. Qe4+ {[%clk 0:00:54]}  Kb3 {[%clk 0:00:38]} 49. Qd3+ {[%clk 0:00:55]}  Ka2 {[%clk 0:00:36]} 50. Qc2+ {[%clk 0:00:52]}  Ka3 {[%clk 0:00:36]} 51. Qd3+ {[%clk 0:00:49]}  Ka2 {[%clk 0:00:35]} 52. Qc4+ {[%clk 0:00:49]}  Kb1 {[%clk 0:00:23]} 53. Qf1+ {[%clk 0:00:49]} 1-0


[Site "https://www.chess.com"]

[Event "Titled Tuesday Blitz July 25 Early 2023"]
[White "Sipila, Vilka"]
[Black "Nenezic, Marko"]
[WhiteFideId "505455"]
[BlackFideId "912123"]
[WhiteElo "2608"]
[BlackElo "2788"]
[Result "1-0"]
[Round "7"]
[TimeControl "180+2"]
[Date "2023.07.25"]
[WhiteClock "0:01:05"]
[BlackClock "0:00:49"]
[Board "49"]

1. Nf3 {[%clk 0:03:00]}  Nf6 {[%clk 0:02:59]} 2. g3 {[%clk 0:02:59]}  g6 {[%clk 0:03:00]} 3. b3 {[%clk 0:02:59]}  b5 {[%clk 0:03:00]} 4. Bg2 {[%clk 0:02:59]}  Bb7 {[%clk 0:03:00]} 5. Bb2 {[%clk 0:02:58]}  Bg7 {[%clk 0:03:01]} 6. O-O {[%clk 0:02:58]}  O-O {[%clk 0:03:01]} 7. d4 {[%clk 0:02:47]}  d6 {[%clk 0:03:01]} 8. c4 {[%clk 0:02:39]}  bxc4 {[%clk 0:03:00]} 9. bxc4 {[%clk 0:02:39]}  Nbd7 {[%clk 0:02:53]} 10. Nbd2 {[%clk 0:02:35]}  Rb8 {[%clk 0:02:51]} 11. Rb1 {[%clk 0:02:35]}  Ne4 {[%clk 0:02:52]} 12. Qc2 {[%clk 0:02:33]}  Nxd2 {[%clk 0:02:51]} 13. Nxd2 {[%clk 0:02:30]}  Bxg2 {[%clk 0:02:52]} 14. Kxg2 {[%clk 0:02:31]}  e5 {[%clk 0:02:49]} 15. e3 {[%clk 0:02:29]}  Rb7 {[%clk 0:02:28]} 16. c5 {[%clk 0:02:26]}  dxc5 {[%clk 0:02:19]} 17. dxc5 {[%clk 0:02:27]}  Nb8 {[%clk 0:02:08]} 18. Qe4 {[%clk 0:02:07]}  Rb5 {[%clk 0:02:03]} 19. a4 {[%clk 0:01:46]}  Ra5 {[%clk 0:01:33]} 20. Bc3 {[%clk 0:01:34]}  Ra6 {[%clk 0:01:33]} 21. Rb7 {[%clk 0:01:31]}  Re6 {[%clk 0:01:18]} 22. Rxa7 {[%clk 0:01:28]}  Nc6 {[%clk 0:01:19]} 23. Rb7 {[%clk 0:01:27]}  Qa8 {[%clk 0:01:19]} 24. Rfb1 {[%clk 0:01:26]}  Rd8 {[%clk 0:01:15]} 25. Nf3 {[%clk 0:01:13]}  Qa6 {[%clk 0:01:09]} 26. Rxc7 {[%clk 0:01:11]}  f5 {[%clk 0:01:07]} 27. Qc2 {[%clk 0:01:10]}  Bf6 {[%clk 0:00:55]} 28. Qa2 {[%clk 0:01:06]}  Re8 {[%clk 0:00:49]} 29. Rb6 {[%clk 0:01:05]} 1-0


[Site "https://www.chess.com"]